fUST/lending_fUST_20260609
["ID","MTS","AMOUNT","RATE_DAILY","PERIOD"]
[424496933,1780971039000,-1774.80767377,0.00017499,7]
[424496920,1780971039000,-278.47595607,0.00017406,2]
[424496922,1780971039000,-180.93364922,0.00017406,2]
[424496924,1780971039000,-1745.52610468,0.00017409,7]
[424496923,1780971039000,-200.28321125,0.00017406,2]
[424496935,1780971039000,-417.15472785,0.00017499,7]
[424496936,1780971039000,-499.64617235,0.00017556,2]
[424496926,1780971039000,-290.75190579,0.00017476,2]
[424496927,1780971039000,-523.35343043,0.00017476,2]
[424496945,1780971041000,-697.77725544,0.00017961,2]
[424496946,1780971042000,-877.32892767,0.00017961,2]
[424496962,1780971043000,-14269.842413,0.00017961,2]
[424496980,1780971679000,249.85930751,0.00023755,30]
[424496984,1780971722000,158.44966074,0.00023755,30]
[424496983,1780971722000,677.75708871,0.00023755,120]
[424496985,1780971727000,54358.09094735,7.6e-05,2]
[424496986,1780971730000,232.31523709,0.00023755,120]
[424496987,1780971736000,201.68404268,0.00023755,30]
[424497031,1780972198000,1923.87369832,0.00023755,31]
[424497062,1780972232000,-3465.85544935,9.507e-05,2]
[424497060,1780972232000,-640.4768658,9.507e-05,2]
[424497127,1780972238000,-893.66768485,9.507e-05,2]
[424497129,1780972238000,-151.0,9.603e-05,2]
[424497132,1780972238000,-500.0,9.996e-05,2]
[424497134,1780972238000,-206.26982633,9.996e-05,2]
[424497136,1780972238000,-500.0,9.996e-05,2]
[424497139,1780972238000,-500.0,9.996e-05,2]
[424497131,1780972238000,-500.0,9.996e-05,2]
[424497141,1780972238000,-500.0,9.996e-05,2]
[424497143,1780972238000,-500.0,9.996e-05,2]
[424497145,1780972238000,-500.0,9.996e-05,2]
[424497147,1780972238000,-425.81278209,9.996e-05,2]
[424497148,1780972238000,-500.0,9.996e-05,2]
[424497150,1780972238000,-578.64759362,9.996e-05,2]
[424497137,1780972238000,-500.0,9.996e-05,2]
[424497172,1780972239000,-300.0,0.00010199,2]
[424497159,1780972239000,-178.6945986,0.0001,2]
[424497157,1780972239000,-4001.22676961,0.0001,2]
[424497173,1780972239000,-300.0,0.00010199,2]
[424497170,1780972239000,-300.0,0.00010199,2]
[424497156,1780972239000,-318.50402756,9.996e-05,2]
[424497166,1780972239000,-300.0,0.00010199,2]
[424497154,1780972239000,-500.0,9.996e-05,2]
[424497152,1780972239000,-500.0,9.996e-05,2]
[424497161,1780972239000,-300.0,0.00010199,2]
[424497168,1780972239000,-300.0,0.00010199,2]
[424497163,1780972239000,-300.0,0.00010199,2]
[424497179,1780972239000,-300.0,0.00010199,2]
[424497177,1780972239000,-300.0,0.00010199,2]
[424497165,1780972239000,-300.0,0.00010199,2]
[424497192,1780972239000,-501.52710237,0.00010402,2]
[424497190,1780972239000,-586.8914962,0.00010253,2]
[424497195,1780972239000,-98.47289763,0.00010402,2]
[424497185,1780972239000,-300.0,0.00010199,2]
[424497196,1780972239000,-183.86321303,0.000109,2]
[424497187,1780972239000,-300.0,0.00010199,2]
[424497198,1780972239000,-187.49512871,0.00011228,2]
[424497182,1780972239000,-300.0,0.00010199,2]
[424497175,1780972239000,-300.0,0.00010199,2]
[424497188,1780972239000,-300.0,0.00010199,2]
[424497480,1780972241000,-500.0,0.00011798,2]
[424497468,1780972241000,-81.74919219,0.00011228,2]
[424497466,1780972241000,-5000.0,9.412e-05,2]
[424497470,1780972241000,-720.0,0.00011442,2]
[424497472,1780972241000,-750.90346183,0.000115,2]
[424497488,1780972241000,-500.0,0.00011798,2]
[424497474,1780972241000,-187.93249574,0.00011629,7]
[424497484,1780972241000,-500.0,0.00011798,2]
[424497486,1780972241000,-500.0,0.00011798,2]
[424497478,1780972241000,-478.95925564,0.00011798,2]
[424497490,1780972241000,-500.0,0.00011798,2]
[424497505,1780972241000,-500.0,0.00011798,2]
[424497493,1780972241000,-500.0,0.00011798,2]
[424497512,1780972241000,-500.0,0.00011798,2]
[424497514,1780972241000,-500.0,0.00011798,2]
[424497515,1780972241000,-24031.80526775,0.000118,5]
[424497518,1780972241000,-2300.8121136,0.000118,5]
[424497510,1780972241000,-500.0,0.00011798,2]
[424497501,1780972241000,-500.0,0.00011798,2]
[424497503,1780972241000,-500.0,0.00011798,2]
[424497499,1780972241000,-500.0,0.00011798,2]
[424497482,1780972241000,-500.0,0.00011798,2]
[424497508,1780972241000,-493.67304512,0.00011798,2]
[424497476,1780972241000,-4522.16360234,0.00011698,2]
[424497764,1780972243000,-320.81182996,0.000118,5]
[424497899,1780972291000,-1859.22373556,0.00011682,2]
[424497903,1780972548000,151.0,8e-05,2]
[424497905,1780973246000,151.0,8e-05,2]
[424497942,1780973431000,-3142.00522956,0.00011032,2]
[424498076,1780973438000,-276.31448797,0.00011032,2]
[424498069,1780973438000,-1148.52844688,0.00011032,2]
[424498407,1780973941000,151.0,8e-05,2]
[424498408,1780974182000,120075.7,0.00023752,30]
[424498410,1780974529000,-5000.0,0.00010705,2]
[424498417,1780974591000,-1866.20846216,0.00011256,2]
[424498416,1780974591000,-230.96084374,0.00011255,2]
[424498415,1780974591000,-412.6303768,0.00011255,2]
[424498414,1780974591000,-500.0,0.00011255,2]
[424498411,1780974591000,-5000.0,0.00011032,2]
[424498413,1780974591000,-500.0,0.00011255,2]
[424498412,1780974591000,-251.2003173,0.00011143,2]
[424498475,1780974638000,-500.0,0.00011799,2]
[424498476,1780974638000,-500.0,0.00011799,2]
[424498478,1780974638000,-245.57113158,0.00011799,2]
[424498483,1780974638000,-891.9184298,0.000118,5]
[424498469,1780974638000,-5000.0,0.00011143,2]
[424498471,1780974638000,-188.0845893,0.00011257,2]
[424498470,1780974638000,-950.84862364,0.00011256,2]
[424498472,1780974638000,-152.0,0.00011636,7]
[424498473,1780974638000,-448.72343226,0.00011799,2]
[424498474,1780974638000,-500.0,0.00011799,2]
[424498488,1780974638000,-1424.52962879,0.00012204,2]
[424498479,1780974638000,-500.0,0.00011799,2]
[424498480,1780974638000,-500.0,0.00011799,2]
[424498481,1780974638000,-500.0,0.00011799,2]
[424498482,1780974638000,-4988.38498378,0.000118,5]
[424498484,1780974638000,-4161.29636422,0.000118,5]
[424498485,1780974638000,-3956.8931521,0.00012104,2]
[424498486,1780974638000,-445.165509,0.00012204,2]
[424498487,1780974638000,-801.29791619,0.00012204,2]
[424498489,1780974638000,-1117.16800122,0.00012204,2]
[424498477,1780974638000,-500.0,0.00011799,2]
[424498506,1780974646000,-690.67140703,0.00011032,2]
[424498507,1780974675000,151.0,8e-05,2]
[424498511,1780975239000,151.0,8e-05,2]
[424498512,1780975316000,59461.16413271,7.6e-05,2]
[424498513,1780975629000,151.0,8e-05,2]
[424498549,1780975832000,-5000.0,9.55e-05,2]
[424498554,1780975832000,-500.0,9.939e-05,2]
[424498551,1780975832000,-152.0,9.646e-05,2]
[424498561,1780975832000,-500.0,9.939e-05,2]
[424498552,1780975832000,-500.22174247,9.938e-05,2]
[424498564,1780975832000,-621.89979211,9.939e-05,2]
[424498557,1780975832000,-463.2654022,9.939e-05,2]
[424498563,1780975832000,-500.0,9.939e-05,2]
[424498573,1780975832000,-1579.82982028,9.94e-05,2]
[424498565,1780975832000,-3205.19166477,9.94e-05,2]
[424498569,1780975832000,-55.49672503,9.94e-05,2]
[424498567,1780975832000,-493.69681884,9.94e-05,2]
[424498566,1780975832000,-4362.62198816,9.94e-05,2]
[424498572,1780975832000,-833.15754888,9.94e-05,2]
[424498575,1780975832000,-1823.44677106,9.94e-05,2]
[424498577,1780975832000,-645.03732313,9.94e-05,2]
[424498579,1780975832000,-421.96758671,9.94e-05,2]
[424498559,1780975832000,-500.0,9.939e-05,2]
[424498600,1780975837000,-243.66666764,9.94e-05,2]
[424498601,1780975837000,-1198.14165783,9.94e-05,2]
[424498602,1780975837000,-2130.02961392,9.94e-05,2]
[424498605,1780975837000,-1157.13854129,9.94e-05,2]
[424498606,1780975837000,-1299.99750241,9.94e-05,2]
[424498603,1780975837000,-3328.17127175,9.94e-05,2]
[424498604,1780975837000,-642.85474516,9.94e-05,2]
[424498707,1780975838000,-380.965,0.00014075,2]
[424498671,1780975838000,-366.62322435,0.0001291,2]
[424498675,1780975838000,-296.92632671,0.00013672,7]
[424498673,1780975838000,-225.57636489,0.00013533,2]
[424498677,1780975838000,-503.67290837,0.00013698,2]
[424498684,1780975838000,-151.0,0.00013699,2]
[424498686,1780975838000,-151.0,0.00013699,2]
[424498678,1780975838000,-164.481804,0.00013698,2]
[424498669,1780975838000,-514.77703556,0.00012804,2]
[424498687,1780975838000,-151.0,0.00013699,2]
[424498693,1780975838000,-160.400561,0.00013699,2]
[424498689,1780975838000,-151.0,0.00013699,2]
[424498694,1780975838000,-1000.0,0.00013699,2]
[424498691,1780975838000,-151.0,0.00013699,2]
[424498680,1780975838000,-151.0,0.00013699,2]
[424498682,1780975838000,-151.0,0.00013699,2]
[424498660,1780975838000,-275.72395287,0.00012022,2]
[424498662,1780975838000,-489.68574031,0.00012022,2]
[424498644,1780975838000,-193.492699,0.00010228,2]
[424498710,1780975838000,-157.82,0.00014075,2]
[424498640,1780975838000,-3214.2737258,9.94e-05,2]
[424498642,1780975838000,-171.7014605,0.00010093,2]
[424498639,1780975838000,-757.1376821,9.94e-05,2]
[424498647,1780975838000,-6639.2150786,0.00011343,2]
[424498645,1780975838000,-187.7674789,0.00011343,2]
[424498651,1780975838000,-203.67956909,0.00011798,2]
[424498649,1780975838000,-152.0,0.00011639,7]
[424498654,1780975838000,-342.89563497,0.00012022,2]
[424498652,1780975838000,-2612.61965896,0.00012,2]
[424498665,1780975838000,-281.89874363,0.00012313,7]
[424498658,1780975838000,-153.17997382,0.00012022,2]
[424498667,1780975838000,-193.492699,0.00012381,2]
[424498656,1780975838000,-617.21214294,0.00012022,2]
[424498663,1780975838000,-614.3438111,0.00012081,2]
[424498712,1780975838000,-164.13368386,0.0001409,2]
[424498767,1780975838000,-500.30420915,0.00016438,2]
[424498714,1780975838000,-295.14519031,0.0001409,2]
[424498741,1780975838000,-720.0,0.0001597,2]
[424498746,1780975838000,-326.0881583,0.00016359,2]
[424498743,1780975838000,-326.4407506,0.00016359,2]
[424498750,1780975838000,-500.44795186,0.00016438,2]
[424498748,1780975838000,-457.3719674,0.00016435,2]
[424498745,1780975838000,-457.3719674,0.00016359,2]
[424498762,1780975838000,-500.0,0.00016438,2]
[424498754,1780975838000,-500.0,0.00016438,2]
[424498752,1780975838000,-200.0,0.00016438,2]
[424498757,1780975838000,-501.16058714,0.00016438,2]
[424498759,1780975838000,-500.25653352,0.00016438,2]
[424498760,1780975838000,-500.6917168,0.00016438,2]
[424498766,1780975838000,-501.5916695,0.00016438,2]
[424498764,1780975838000,-500.0,0.00016438,2]
[424498696,1780975838000,-312.79553573,0.00013738,2]
[424498736,1780975838000,-456.8258312,0.00015538,2]
[424498732,1780975838000,-417.15472785,0.00015227,2]
[424498755,1780975838000,-501.38399827,0.00016438,2]
[424498723,1780975838000,-600.0,0.00014518,2]
[424498718,1780975838000,-381.74254197,0.00014387,2]
[424498698,1780975838000,-157.05,0.00013859,2]
[424498705,1780975838000,-651.12284645,0.0001404,2]
[424498703,1780975838000,-683.80741035,0.00013944,2]
[424498700,1780975838000,-213.68981574,0.00013944,2]
[424498721,1780975838000,-1221.57613429,0.00014387,2]
[424498719,1780975838000,-687.13657554,0.00014387,2]
[424498702,1780975838000,-384.64166832,0.00013944,2]
[424498739,1780975838000,-200.6885123,0.0001595,5]
[424498737,1780975838000,-572.13032532,0.00015911,7]
[424498726,1780975838000,-1000.0,0.00015,2]
[424498734,1780975838000,-457.2882001,0.00015538,2]
[424498716,1780975838000,-159.8,0.00014334,2]
[424498730,1780975838000,-768.72334842,0.00015227,2]
[424498725,1780975838000,-151.0,0.00014973,2]
[424498728,1780975838000,-319.76308051,0.00015003,2]
[424498847,1780975839000,-500.0,0.00016712,2]
[424498837,1780975839000,-561.81,0.00016712,2]
[424498849,1780975839000,-500.0,0.00016712,2]
[424498859,1780975839000,-500.0,0.00016712,2]
[424498857,1780975839000,-500.0,0.00016712,2]
[424498840,1780975839000,-500.0,0.00016712,2]
[424498846,1780975839000,-500.0,0.00016712,2]
[424498844,1780975839000,-190.19978295,0.00016712,2]
[424498842,1780975839000,-500.0,0.00016712,2]
[424498835,1780975839000,-500.0,0.00016712,2]
[424498826,1780975839000,-444.0,0.0001666,2]
[424498851,1780975839000,-500.0,0.00016712,2]
[424498833,1780975839000,-500.0,0.00016712,2]
[424498839,1780975839000,-500.0,0.00016712,2]
[424498871,1780975839000,-238.02448403,0.00016986,2]
[424498853,1780975839000,-396.29562826,0.00016712,2]
[424498861,1780975839000,-320.29120936,0.00016712,2]
[424498865,1780975839000,-500.0,0.00016712,2]
[424498863,1780975839000,-500.0,0.00016712,2]
[424498869,1780975839000,-325.11618329,0.00016986,2]
[424498867,1780975839000,-500.0,0.00016986,2]
[424498872,1780975839000,-561.81,0.00016986,2]
[424498882,1780975839000,-500.0,0.00016986,2]
[424498876,1780975839000,-186.63496496,0.00016986,2]
[424498884,1780975839000,-500.0,0.00016986,2]
[424498880,1780975839000,-500.0,0.00016986,2]
[424498886,1780975839000,-500.0,0.00016986,2]
[424498830,1780975839000,-1416.0,0.0001666,2]
[424498855,1780975839000,-500.0,0.00016712,2]
[424498822,1780975839000,-189.74,0.0001656,2]
[424498790,1780975839000,-500.0,0.00016438,2]
[424498831,1780975839000,-500.0,0.00016712,2]
[424498874,1780975839000,-500.0,0.00016986,2]
[424498773,1780975839000,-500.0,0.00016438,2]
[424498769,1780975839000,-501.13198216,0.00016438,2]
[424498771,1780975839000,-561.81,0.00016438,2]
[424498784,1780975839000,-500.0,0.00016438,2]
[424498775,1780975839000,-500.9215693,0.00016438,2]
[424498779,1780975839000,-500.45612549,0.00016438,2]
[424498781,1780975839000,-500.0,0.00016438,2]
[424498777,1780975839000,-500.0,0.00016438,2]
[424498782,1780975839000,-500.47371429,0.00016438,2]
[424498786,1780975839000,-500.70121491,0.00016438,2]
[424498788,1780975839000,-501.81584658,0.00016438,2]
[424498791,1780975839000,-500.0,0.00016438,2]
[424498793,1780975839000,-500.0,0.00016438,2]
[424498795,1780975839000,-500.57737308,0.00016438,2]
[424498797,1780975839000,-500.31543835,0.00016438,2]
[424498809,1780975839000,-509.75646644,0.00016438,2]
[424498804,1780975839000,-500.0,0.00016438,2]
[424498807,1780975839000,-500.0,0.00016438,2]
[424498805,1780975839000,-474.21850102,0.00016438,2]
[424498800,1780975839000,-500.0,0.00016438,2]
[424498802,1780975839000,-500.0,0.00016438,2]
[424498813,1780975839000,-500.0,0.00016438,2]
[424498811,1780975839000,-500.0,0.00016438,2]
[424498815,1780975839000,-500.0,0.00016438,2]
[424498820,1780975839000,-151.0,0.000165,2]
[424498818,1780975839000,-500.0,0.00016438,2]
[424498817,1780975839000,-501.4560817,0.00016438,2]
[424498828,1780975839000,-186.0,0.0001666,2]
[424498824,1780975839000,-3552.352,0.0001666,2]
[424498878,1780975839000,-500.0,0.00016986,2]
[424498798,1780975839000,-500.0,0.00016438,2]
[424498890,1780975839000,-500.0,0.00016986,2]
[424498953,1780975839000,-500.0,0.00017534,2]
[424498957,1780975839000,-500.0,0.00017534,2]
[424498961,1780975839000,-864.0,0.00017567,2]
[424498965,1780975839000,-561.81,0.00017808,2]
[424498967,1780975839000,-500.0,0.00017808,2]
[424498959,1780975839000,-500.0,0.00017534,2]
[424498968,1780975839000,-500.0,0.00017808,2]
[424498963,1780975839000,-561.19,0.00017691,2]
[424499010,1780975839000,-160.0,0.0001805,2]
[424498978,1780975839000,-500.0,0.00017808,2]
[424498970,1780975839000,-500.0,0.00017808,2]
[424498980,1780975839000,-530.0,0.000179,2]
[424498972,1780975839000,-500.0,0.00017808,2]
[424498976,1780975839000,-500.0,0.00017808,2]
[424498974,1780975839000,-500.0,0.00017808,2]
[424498982,1780975839000,-825.0,0.00017979,2]
[424498986,1780975839000,-239.2,0.0001799,3]
[424498990,1780975839000,-956.79,0.00017994,3]
[424498984,1780975839000,-478.39,0.0001799,3]
[424498992,1780975839000,-161.0,0.00018,5]
[424498988,1780975839000,-717.61,0.0001799,3]
[424499004,1780975839000,-326.4407506,0.00018004,2]
[424498994,1780975839000,-4002.41083634,0.00018,2]
[424499000,1780975839000,-457.2882,0.00018003,2]
[424498996,1780975839000,-457.2882,0.00018003,2]
[424498998,1780975839000,-457.2882,0.00018003,2]
[424499002,1780975839000,-326.5044789,0.00018003,2]
[424499006,1780975839000,-1913.57,0.0001804,3]
[424499008,1780975839000,-165.59666299,0.0001805,2]
[424498947,1780975839000,-500.0,0.00017534,2]
[424498949,1780975839000,-500.0,0.00017534,2]
[424498888,1780975839000,-500.0,0.00016986,2]
[424498945,1780975839000,-500.0,0.00017534,2]
[424498892,1780975839000,-548.97607354,0.00016986,2]
[424498894,1780975839000,-627.35978406,0.00016986,2]
[424498896,1780975839000,-500.0,0.00016986,2]
[424498898,1780975839000,-1000.0,0.00017,2]
[424498908,1780975839000,-326.4407506,0.00017182,2]
[424498905,1780975839000,-326.4407506,0.00017181,2]
[424498903,1780975839000,-163.56182628,0.00017013,2]
[424498910,1780975839000,-457.2882,0.00017182,2]
[424498951,1780975839000,-575.79279311,0.00017534,2]
[424498899,1780975839000,-172.0,0.00017013,2]
[424498901,1780975839000,-156.0,0.00017013,2]
[424498911,1780975839000,-326.4407506,0.00017182,2]
[424498916,1780975839000,-500.0,0.0001726,2]
[424498915,1780975839000,-561.81,0.0001726,2]
[424498906,1780975839000,-326.4407506,0.00017181,2]
[424498918,1780975839000,-500.0,0.0001726,2]
[424498913,1780975839000,-440.9843454,0.0001726,2]
[424498944,1780975839000,-561.81,0.00017534,2]
[424498942,1780975839000,-176.15901125,0.00017429,2]
[424498940,1780975839000,-202.03200487,0.00017429,2]
[424498936,1780975839000,-180.25489012,0.00017428,2]
[424498938,1780975839000,-277.60634521,0.00017429,2]
[424498955,1780975839000,-500.0,0.00017534,2]
[424498928,1780975839000,-325.71521854,0.0001726,2]
[424498922,1780975839000,-500.0,0.0001726,2]
[424498924,1780975839000,-500.0,0.0001726,2]
[424498926,1780975839000,-500.0,0.0001726,2]
[424498931,1780975839000,-500.0,0.0001726,2]
[424498920,1780975839000,-500.0,0.0001726,2]
[424498929,1780975839000,-500.0,0.0001726,2]
[424499104,1780975840000,-528.47703376,0.00018767,2]
[424499098,1780975840000,-540.76467036,0.00018765,2]
[424499092,1780975840000,-168.10476259,0.00018743,2]
[424499094,1780975840000,-210.29330724,0.00018743,2]
[424499108,1780975840000,-338.7867782,0.00018825,2]
[424499086,1780975840000,-258.19698157,0.00018737,2]
[424499100,1780975840000,-832.81903562,0.00018767,2]
[424499090,1780975840000,-222.59024398,0.00018743,2]
[424499088,1780975840000,-314.10713353,0.00018737,2]
[424499074,1780975840000,-500.0,0.0001863,2]
[424499072,1780975840000,-435.44978232,0.0001863,2]
[424499096,1780975840000,-496.62362233,0.00018758,2]
[424499102,1780975840000,-606.0960146,0.00018767,2]
[424499128,1780975840000,-500.0,0.00018904,2]
[424499109,1780975840000,-457.2882,0.00018825,2]
[424499111,1780975840000,-457.2882,0.00018825,2]
[424499113,1780975840000,-274.7649494,0.00018825,2]
[424499122,1780975840000,-326.4407506,0.00018839,2]
[424499115,1780975840000,-457.2882,0.00018825,2]
[424499120,1780975840000,-326.4407506,0.00018827,2]
[424499118,1780975840000,-326.4407506,0.00018827,2]
[424499117,1780975840000,-326.5044788,0.00018825,2]
[424499124,1780975840000,-326.4407506,0.00018841,2]
[424499130,1780975840000,-500.0,0.00018904,2]
[424499133,1780975840000,-906.0,0.00018904,2]
[424499126,1780975840000,-561.81,0.00018904,2]
[424499131,1780975840000,-500.0,0.00018904,2]
[424499068,1780975840000,-825.0,0.0001863,2]
[424499106,1780975840000,-1001.07,0.000188,5]
[424499084,1780975840000,-906.0,0.0001863,2]
[424499043,1780975840000,-7654.3,0.00018346,3]
[424499080,1780975840000,-500.0,0.0001863,2]
[424499149,1780975840000,-445.18048796,0.00019099,2]
[424499012,1780975840000,-3827.15,0.00018072,3]
[424499016,1780975840000,-500.0,0.00018082,2]
[424499020,1780975840000,-500.0,0.00018082,2]
[424499014,1780975840000,-561.81,0.00018082,2]
[424499018,1780975840000,-500.0,0.00018082,2]
[424499024,1780975840000,-500.0,0.00018082,2]
[424499022,1780975840000,-500.0,0.00018082,2]
[424499026,1780975840000,-500.0,0.00018082,2]
[424499030,1780975840000,-500.0,0.00018082,2]
[424499032,1780975840000,-157.05356676,0.00018203,2]
[424499036,1780975840000,-360.50978024,0.0001823,2]
[424499034,1780975840000,-248.31181117,0.00018223,2]
[424499038,1780975840000,-555.21269041,0.00018232,2]
[424499042,1780975840000,-352.31802251,0.00018232,2]
[424499040,1780975840000,-404.06400973,0.00018232,2]
[424499045,1780975840000,-561.81,0.00018356,2]
[424499047,1780975840000,-500.0,0.00018356,2]
[424499053,1780975840000,-500.0,0.00018356,2]
[424499058,1780975840000,-500.0,0.00018356,2]
[424499055,1780975840000,-500.0,0.00018356,2]
[424499051,1780975840000,-347.43137408,0.00018356,2]
[424499056,1780975840000,-500.0,0.00018356,2]
[424499049,1780975840000,-500.0,0.00018356,2]
[424499060,1780975840000,-417.15472785,0.0001862,3]
[424499062,1780975840000,-476.12704437,0.0001862,3]
[424499064,1780975840000,-15308.59,0.0001862,3]
[424499075,1780975840000,-208.80507394,0.0001863,2]
[424499077,1780975840000,-500.0,0.0001863,2]
[424499082,1780975840000,-164.44339791,0.0001863,2]
[424499147,1780975840000,-721.01956048,0.00019098,2]
[424499070,1780975840000,-561.81,0.0001863,2]
[424499153,1780975840000,-420.58661449,0.00019099,2]
[424499209,1780975840000,-1010.16002434,0.00019481,2]
[424499207,1780975840000,-1388.03172603,0.00019481,2]
[424499211,1780975840000,-880.79505627,0.00019481,2]
[424499213,1780975840000,-300.0,0.00019589,3]
[424499217,1780975840000,-457.2882,0.00019647,2]
[424499218,1780975840000,-457.2882,0.00019647,2]
[424499220,1780975840000,-326.4407506,0.00019647,2]
[424499222,1780975840000,-326.4407506,0.00019647,2]
[424499224,1780975840000,-326.4407506,0.00019647,2]
[424499230,1780975840000,-444.0,0.0001966,2]
[424499228,1780975840000,-326.4407506,0.00019647,2]
[424499226,1780975840000,-457.2882,0.00019647,2]
[424499232,1780975840000,-186.0,0.0001966,2]
[424499205,1780975840000,-906.0,0.00019452,2]
[424499234,1780975840000,-881.755,0.0001966,2]
[424499240,1780975840000,-457.2882,0.00019663,2]
[424499236,1780975840000,-326.4407506,0.00019661,2]
[424499244,1780975840000,-457.2882,0.00019663,2]
[424499246,1780975840000,-326.4407506,0.00019663,2]
[424499250,1780975840000,-401.66186778,0.0001972,3]
[424499248,1780975840000,-15308.6,0.00019716,3]
[424499262,1780975840000,-906.0,0.00019726,2]
[424499254,1780975840000,-561.81,0.00019726,2]
[424499242,1780975840000,-457.2882,0.00019663,2]
[424499252,1780975840000,-417.15472785,0.0001972,3]
[424499260,1780975840000,-448.66858684,0.00019726,2]
[424499264,1780975840000,-176.42,0.00019771,2]
[424499255,1780975840000,-500.0,0.00019726,2]
[424499238,1780975840000,-326.4407506,0.00019661,2]
[424499203,1780975840000,-500.0,0.00019452,2]
[424499215,1780975840000,-500.40033833,0.00019625,2]
[424499258,1780975840000,-555.6659157,0.00019726,2]
[424499201,1780975840000,-500.0,0.00019452,2]
[424499137,1780975840000,-471.16070029,0.00019093,2]
[424499155,1780975840000,-166.66666672,0.00019101,2]
[424499157,1780975840000,-744.9354335,0.00019115,2]
[424499139,1780975840000,-516.39396313,0.00019093,2]
[424499145,1780975840000,-174.17188761,0.00019094,2]
[424499159,1780975840000,-177.21666597,0.00019115,2]
[424499143,1780975840000,-178.61210141,0.00019094,2]
[424499141,1780975840000,-194.14023247,0.00019094,2]
[424499161,1780975840000,-1110.42538082,0.00019124,2]
[424499163,1780975840000,-808.12801947,0.00019124,2]
[424499175,1780975840000,-500.0,0.00019178,2]
[424499173,1780975840000,-500.0,0.00019178,2]
[424499177,1780975840000,-906.0,0.00019178,2]
[424499179,1780975840000,-825.0,0.0001918,2]
[424499135,1780975840000,-160.0,0.0001905,2]
[424499151,1780975840000,-336.20952519,0.00019099,2]
[424499199,1780975840000,-500.0,0.00019452,2]
[424499197,1780975840000,-561.81,0.00019452,2]
[424499191,1780975840000,-1913.58,0.00019364,3]
[424499193,1780975840000,-3827.14,0.0001941,3]
[424499189,1780975840000,-478.4,0.0001936,3]
[424499187,1780975840000,-956.78,0.0001936,3]
[424499195,1780975840000,-7654.3,0.00019442,3]
[424499171,1780975840000,-500.0,0.00019178,2]
[424499165,1780975840000,-704.63604502,0.00019124,2]
[424499167,1780975840000,-903.37,0.00019178,2]
[424499169,1780975840000,-561.81,0.00019178,2]
[424499183,1780975840000,-832.0,0.0001927,2]
[424499185,1780975840000,-1000.0,0.00019323,2]
[424499181,1780975840000,-825.0,0.00019214,2]
[424499267,1780975841000,-956.5549751,0.000199,2]
[424499266,1780975841000,-411.0,0.00019899,2]
[424499279,1780975841000,-10617.73896644,0.0002,2]
[424499269,1780975841000,-4119.53397301,0.000199,2]
[424499281,1780975841000,-14896.86462486,0.0002,2]
[424499285,1780975841000,-376.48690116,0.0002,2]
[424499275,1780975841000,-340182.29124338,0.0002,2]
[424499273,1780975841000,-30617.18,0.0001999,3]
[424499277,1780975841000,-5799.67058065,0.0002,2]
[424499289,1780975841000,-205.39654029,0.0002,2]
[424499287,1780975841000,-455.21830767,0.0002,2]
[424499294,1780975841000,-162.00380565,0.0002,2]
[424499296,1780975841000,-332873.19797457,0.0002,2]
[424499300,1780975841000,-2698.15832941,0.0002,2]
[424499292,1780975841000,-1000.0,0.0002,2]
[424499303,1780975841000,-737.86066488,0.0002,2]
[424499306,1780975841000,-4086.83690465,0.0002,2]
[424499271,1780975841000,-701.76026993,0.00019961,2]
[424499439,1780975843000,-2964.69468935,0.0002,2]
[424499440,1780975843000,-41692.0,0.0002,2]